bitfinex-derivatives/quotes_SOLF0:USTF0_20250924
["timestamp","ask_amount","ask_price","bid_price","bid_amount"]
[1758745318227,3.31932659,212.95,212.93,12.1845]
[1758745318429,7.95,212.96,212.93,12.1845]
[1758745318632,3.31957212,212.95,212.93,12.1845]
[1758745318933,7.95,212.96,212.93,12.1845]
[1758745319137,3.31957212,212.95,212.93,12.1845]
[1758745319439,7.95,212.96,212.93,4.2245]
[1758745319638,3.31982933,212.95,212.94,7.93]
[1758745322035,3.31982933,212.95,212.92,114.18]
[1758745322340,9.61357419,212.93,212.86,7.8]
[1758745322544,3.31982933,212.92,212.86,7.8]
[1758745322746,3.31982933,212.92,212.88,7.8]
[1758745322943,9.61357419,212.97,212.89,7.8]
[1758745323249,3.32067005,212.96,212.89,7.8]
[1758745323548,3.32067005,212.95,212.89,7.8]
[1758745323749,3.32067005,212.94,212.89,7.8]
[1758745324048,9.61357419,212.97,212.89,7.8]
[1758745324250,3.32102936,212.96,212.92,4.2247]
[1758745324448,3.32102936,212.95,212.93,7.8]
[1758745324743,3.32102936,212.94,212.93,7.8]
[1758745324944,3.32102936,212.96,212.93,7.8]
[1758745325145,3.32102936,212.95,212.93,7.8]
[1758745325350,3.32102936,212.94,212.93,7.8]
[1758745325550,9.61357419,212.97,212.94,4.2244]
[1758745325551,2.17357419,212.97,212.94,4.2244]
[1758745325753,3.32120478,212.96,212.95,7.8]
[1758745328055,3.32120478,212.96,212.92,4.2247]
[1758745328056,7.44,212.95,212.92,4.2247]
[1758745328251,3.32120478,212.94,212.92,4.2247]
[1758745328450,3.32120478,212.93,212.92,4.2247]
[1758745328651,3.32120478,212.94,212.92,4.2247]
[1758745328950,3.32120478,212.94,212.92,12.0247]
[1758745329955,3.32120478,212.94,212.93,7.8]
[1758745330147,2.17357419,212.97,212.94,12.0244]
[1758745330345,3.32097268,212.96,212.95,7.8]
[1758745331351,3.32097268,212.96,212.94,4.2244]
[1758745331552,3.32097268,212.95,212.94,4.2244]
[1758745331757,3.32097268,212.95,212.94,12.0244]
[1758745331957,7.44,212.95,212.92,12.0247]
[1758745332248,124.0,213.01,212.89,7.8]
[1758745332249,7.44,212.93,212.89,7.8]
[1758745332442,3.32097268,212.92,212.89,7.8]
[1758745332648,10.76097268,212.92,212.89,7.8]
[1758745332850,3.32097268,212.91,212.89,7.8]
[1758745333450,3.32097268,212.91,212.88,12.0255]
[1758745333657,3.32097268,212.9,212.88,12.0255]
[1758745333952,3.32097268,212.9,212.84,114.18]
[1758745333953,10.76097268,212.9,212.86,12.0259]
[1758745334157,3.32097268,212.89,212.86,12.0259]
[1758745334359,10.76097268,212.89,212.86,12.0259]
[1758745334557,10.76097268,212.88,212.84,12.0263]
[1758745334752,3.32097268,212.87,212.84,12.0263]
[1758745337959,10.76097268,212.87,212.83,7.8]
[1758745338164,3.32097268,212.86,212.83,7.8]
[1758745338364,7.44,212.87,212.83,7.8]
[1758745338567,4.2253,212.9,212.82,4.2267]
[1758745338568,2.17357419,212.85,212.82,12.0267]
[1758745338760,3.31924523,212.84,212.82,7.8]
[1758745338961,7.44,212.84,212.8,122.0]
[1758745339557,9.61357419,212.83,212.8,7.8]
[1758745339759,3.3177791,212.82,212.8,7.8]
[1758745339964,9.61357419,212.83,212.8,7.8]
[1758745340161,3.3177839,212.82,212.8,7.8]
[1758745340362,9.61357419,212.83,212.8,7.8]
[1758745340869,2.17357419,212.83,212.8,4.227]
[1758745341070,2.17357419,212.85,212.81,7.8]
[1758745341370,3.31727426,212.84,212.81,7.8]
[1758745341565,9.61357419,212.85,212.81,7.8]
[1758745341770,3.31562294,212.84,212.81,7.8]
[1758745341964,7.44,212.84,212.81,7.8]
[1758745342765,9.61357419,212.85,212.8,4.227]
[1758745342962,9.61357419,212.85,212.81,7.8]
[1758745343367,7.44,212.84,212.81,7.8]
[1758745343763,7.44,212.84,212.8,12.027]
[1758745343962,7.44,212.84,212.8,12.017]
[1758745344159,7.44,212.84,212.81,7.79]
[1758745347171,7.32,212.93,212.81,7.79]
[1758745347377,2.17357419,212.88,212.81,7.79]
[1758745349173,2.17357419,212.88,212.84,4.2262]
[1758745349376,9.49357419,212.88,212.84,12.0162]
[1758745349678,7.32,212.88,212.85,7.79]
[1758745351180,9.49357419,212.89,212.82,12.0166]
[1758745351380,3.30939184,212.88,212.82,12.0166]
[1758745351676,9.49357419,212.89,212.82,12.0166]
[1758745351875,3.30941017,212.88,212.82,12.0166]
[1758745352074,9.49357419,212.89,212.83,4.2264]
[1758745352270,2.17357419,212.91,212.83,7.79]
[1758745352472,3.30975411,212.9,212.83,7.79]
[1758745352673,9.49357419,212.96,212.89,7.79]
[1758745352875,3.30961275,212.95,212.89,7.79]
[1758745353077,7.32,212.93,212.89,7.79]
[1758745353581,3.3097897,212.92,212.89,7.79]
[1758745353777,7.32,212.93,212.89,7.79]
[1758745353978,3.30978906,212.92,212.89,7.79]
[1758745354179,7.32,212.93,212.89,7.79]
[1758745354377,3.30977734,212.92,212.89,7.79]
[1758745354577,7.32,212.93,212.89,7.79]
[1758745354876,3.31006032,212.92,212.89,7.79]
[1758745355076,7.32,212.93,212.89,7.79]
[1758745355878,7.32,212.93,212.88,4.2254]
[1758745356477,7.32,212.93,212.89,7.79]
[1758745356670,4.2243,212.95,212.89,12.0152]
[1758745356671,6.39787419,212.95,212.89,12.0152]
[1758745356870,10.63044773,212.94,212.9,7.79]
[1758745357073,3.31044773,212.93,212.9,7.79]
[1758745357273,7.32,212.94,212.9,7.79]
[1758745357471,3.31076418,212.93,212.9,7.79]
[1758745357681,9.49357419,212.95,212.89,12.0152]
[1758745357882,3.31072963,212.94,212.9,7.79]
[1758745358181,3.31072963,212.93,212.9,7.79]
[1758745358380,2.17357419,212.95,212.89,12.0152]
[1758745358581,3.31105201,212.94,212.89,4.2252]
[1758745358782,3.31105201,212.93,212.9,7.79]
[1758745358986,2.17357419,212.95,212.89,4.2252]
[1758745359286,3.31105201,212.94,212.9,7.79]
[1758745359489,3.31105201,212.93,212.89,4.2252]
[1758745359680,2.17357419,212.95,212.89,12.0152]
[1758745359878,3.31138831,212.94,212.9,7.79]
[1758745360188,3.31138831,212.93,212.89,4.2252]
[1758745360486,2.17357419,212.95,212.89,12.0152]
[1758745360685,10.63173913,212.94,212.9,7.79]
[1758745360882,0.63439948,212.98,212.85,2.17357419]
[1758745360883,12.80531332,212.93,212.85,7.79]
[1758745361083,2.17357419,212.91,212.85,7.79]
[1758745361282,9.49357419,212.91,212.85,7.79]
[1758745362186,9.49357419,212.91,212.85,12.0161]
[1758745362582,9.49357419,212.89,212.85,12.0161]
[1758745363183,9.49357419,212.89,212.86,7.79]
[1758745368789,7.32,212.89,212.86,7.79]
[1758745373288,3.31691746,212.88,212.86,7.79]
[1758745373590,7.32,212.89,212.86,7.79]
[1758745373785,3.31710174,212.88,212.86,7.79]
[1758745373988,7.32,212.89,212.86,7.79]
[1758745374186,3.31710174,212.88,212.86,7.79]
[1758745374386,7.32,212.89,212.86,7.79]
[1758745374592,3.31755546,212.88,212.86,7.79]
[1758745374796,7.32,212.89,212.86,7.79]
[1758745374994,3.31743026,212.88,212.86,7.79]
[1758745375288,7.32,212.89,212.86,7.79]
[1758745375489,3.31843897,212.88,212.86,7.79]
[1758745375691,7.32,212.89,212.86,7.79]
[1758745375890,3.31843897,212.88,212.86,7.79]
[1758745376094,7.32,212.89,212.86,7.79]
[1758745376296,3.31843897,212.88,212.86,7.79]
[1758745376594,3.31843897,212.87,212.86,7.79]
[1758745376995,7.32,212.89,212.86,7.79]
[1758745376996,3.31843897,212.88,212.86,7.79]
[1758745378395,3.31843897,212.88,212.85,7.53]
[1758745378792,3.31843897,212.88,212.84,4.2262]
[1758745379095,3.31843897,212.88,212.85,7.53]
[1758745379394,3.31843897,212.87,212.82,4.2266]
[1758745379594,10.78843897,212.86,212.83,7.53]
[1758745379791,3.31843897,212.85,212.83,7.53]
[1758745380299,11.30843897,212.85,212.83,7.53]
[1758745380591,7.99,212.85,212.83,7.53]
[1758745382098,4.226,212.86,212.83,7.53]
[1758745382301,3.3216081,212.85,212.83,7.53]
[1758745382485,3.3216081,212.84,212.83,7.53]
[1758745382687,3.3216081,212.85,212.77,65.7647]
[1758745382890,3.3216081,212.84,212.78,7.44]
[1758745383189,12.2155,212.88,212.78,7.44]
[1758745383389,3.3216622,212.87,212.78,7.44]
[1758745383591,3.3216622,212.86,212.78,7.44]
[1758745383789,3.3216622,212.85,212.78,7.44]
[1758745383996,3.3216622,212.84,212.78,7.44]
[1758745384295,12.2155,212.88,212.78,7.44]
[1758745384488,3.32094574,212.87,212.78,7.44]
[1758745384688,3.32094574,212.86,212.78,7.44]
[1758745384895,3.32094574,212.85,212.78,7.44]
[1758745385095,3.32094574,212.84,212.78,7.44]
[1758745385300,3.32094574,212.84,212.77,65.7647]
[1758745385301,12.2155,212.88,212.82,7.44]
[1758745385599,3.32165259,212.87,212.82,7.44]
[1758745385787,3.32165259,212.86,212.82,7.44]
[1758745385993,3.32165259,212.85,212.82,7.44]
[1758745386195,3.32165259,212.84,212.82,7.44]
[1758745386395,12.2155,212.88,212.82,7.44]
[1758745386590,3.3221203,212.87,212.82,7.44]
[1758745386792,3.3221203,212.86,212.77,65.7647]
[1758745386997,3.3221203,212.85,212.83,7.44]
[1758745387201,3.3221203,212.84,212.83,7.44]
[1758745389200,7.99,212.92,212.86,7.44]
[1758745389399,7.99,212.9,212.86,7.44]
[1758745389602,3.32267739,212.89,212.86,7.44]
[1758745389799,3.32267739,212.88,212.86,7.44]
[1758745390005,3.32267739,212.87,212.86,7.44]
[1758745390715,3.32267739,212.87,212.85,4.226]
[1758745390911,3.32267739,212.86,212.85,4.226]
[1758745391201,11.31267739,212.89,212.85,4.226]
[1758745391394,3.32267739,212.88,212.86,7.44]
[1758745391604,3.32267739,212.87,212.86,7.44]
[1758745391911,3.32267739,212.88,212.85,4.226]
[1758745392208,3.32267739,212.87,212.86,7.44]
[1758745392595,3.32267739,212.88,212.86,4.2258]
[1758745392796,5.23168997,212.96,212.84,65.7424]
[1758745392998,3.32403036,212.95,212.84,65.7424]
[1758745393200,3.32403036,212.94,212.85,7.44]
[1758745393406,3.32403036,212.93,212.85,7.44]
[1758745393610,3.32403036,212.92,212.85,7.44]
[1758745393805,3.32403036,212.91,212.85,7.44]
[1758745394011,3.32403036,212.9,212.85,7.44]
[1758745394207,3.32403036,212.89,212.85,7.44]
[1758745394408,12.2143,212.95,212.85,7.44]
[1758745394709,3.32389474,212.94,212.85,7.44]
[1758745394906,3.32389474,212.93,212.88,4.2254]
[1758745395108,3.32389474,212.92,212.89,7.44]
[1758745395409,3.32389474,212.91,212.88,4.2254]
[1758745395610,3.32389474,212.9,212.89,7.44]
[1758745402417,3.32641132,212.9,212.89,11.6653]
[1758745404006,7.78,212.96,212.93,7.61]
[1758745404208,3.32622758,212.95,212.93,7.61]
[1758745404409,3.32622758,212.94,212.93,7.61]
[1758745405916,116.38433867,213.02,212.93,7.61]
[1758745406105,116.38433867,213.02,212.92,65.7176]
[1758745406106,3.32440216,213.01,212.95,7.61]
[1758745406310,3.32440216,213.0,212.95,7.61]
[1758745406609,3.32440216,212.99,212.95,7.61]
[1758745406810,108.60433867,213.02,212.95,7.61]
[1758745407011,3.32129346,213.01,212.95,7.61]
[1758745407309,108.60433867,213.02,212.98,4.2234]
[1758745407515,3.31853732,213.01,212.99,7.61]
[1758745407717,108.60433867,213.02,212.98,4.2234]
[1758745407915,3.31853636,213.01,212.99,7.61]
[1758745408106,108.60433867,213.02,212.98,4.2234]
[1758745408310,108.60433867,213.02,212.99,7.61]
[1758745412319,3.39960743,213.05,212.99,4.2232]
[1758745412520,3.30990437,213.04,213.0,7.61]
[1758745412715,7.78,213.03,213.0,7.61]
[1758745416825,7.78,213.04,212.96,11.8338]
[1758745417224,7.62200743,213.05,212.96,11.8338]
[1758745417522,7.78,213.04,212.96,11.8338]
[1758745418123,7.62200743,213.05,212.96,11.8338]
[1758745418323,7.78,213.03,212.96,11.8338]
[1758745420429,11.17960743,213.03,212.96,11.8338]
[1758745421529,7.78,213.02,212.96,11.8338]
[1758745426031,3.39960743,213.03,212.97,4.2236]
[1758745426232,7.78,213.02,212.97,4.2236]
[1758745426533,3.39960743,213.03,212.97,4.2236]
[1758745426720,7.78,213.02,212.97,4.2236]
[1758745427128,3.39960743,213.03,212.97,4.2236]
[1758745427325,7.78,213.02,212.97,11.8336]
[1758745427523,3.39960743,213.03,212.98,7.61]
[1758745428231,3.39960743,213.03,212.98,11.8335]
[1758745428429,7.78,213.02,212.98,11.8335]
[1758745428828,3.39960743,213.03,212.98,11.8335]
[1758745429029,7.78,213.02,212.98,11.8335]
[1758745429433,3.39960743,213.03,212.98,11.8335]
[1758745429629,7.78,213.02,212.98,11.8335]
[1758745429832,3.39960743,213.03,212.98,11.8335]
[1758745430332,7.78,213.02,212.99,7.61]
[1758745430735,3.39960743,213.03,212.99,7.61]
[1758745431231,7.78,213.02,212.99,7.61]
[1758745431628,3.39960743,213.03,212.99,7.61]
[1758745432028,7.78,213.02,212.99,7.61]
[1758745432432,3.39960743,213.03,212.99,7.61]
[1758745432630,7.78,213.02,212.99,7.61]
[1758745432933,3.39960743,213.03,212.99,7.61]
[1758745433234,7.78,213.02,212.99,7.61]
[1758745434228,3.39960743,213.03,212.99,7.61]
[1758745434534,10.75917306,213.02,212.99,7.61]
[1758745434734,7.44,213.02,212.99,7.61]
[1758745434933,3.39960743,213.03,212.99,7.61]
[1758745435132,10.75917306,213.02,212.99,7.61]
[1758745435333,7.44,213.02,212.99,7.61]
[1758745437138,3.32235695,213.01,212.99,7.61]
[1758745437338,7.44,213.02,212.99,7.95]
[1758745437526,3.32235695,213.01,212.98,4.2235]
[1758745437730,7.44,213.02,212.99,7.95]
[1758745437930,3.32235695,213.01,212.98,4.2235]
[1758745438134,7.44,213.02,212.98,4.2235]
[1758745438335,3.32310337,213.01,212.99,7.95]
[1758745438636,7.44,213.02,212.99,7.95]
[1758745438836,3.32310337,213.01,212.99,7.95]
[1758745439033,7.44,213.02,212.99,7.95]
[1758745439333,10.76377254,213.01,212.92,7.95]
[1758745439537,3.32377254,213.0,212.92,7.95]
[1758745440536,5.49661837,213.0,212.92,10.12284583]
[1758745440839,3.32377254,212.99,212.93,7.24]
[1758745441239,3.32377254,212.99,212.95,4.2241]
[1758745441439,11.27377254,212.99,212.96,7.24]
[1758745441640,7.95,212.99,212.96,7.24]
[1758745441829,7.95,212.99,212.95,4.2241]
[1758745442442,7.95,212.99,212.96,7.24]
[1758745442638,5.23168997,213.07,212.92,7.24]
[1758745442639,5.49949745,212.98,212.92,7.24]
[1758745442841,7.95,212.95,212.88,7.24]
[1758745443241,3.32824173,212.94,212.91,7.24]
[1758745443440,7.95,212.95,212.9,4.225]
[1758745443642,3.32824226,212.94,212.91,7.24]
[1758745443841,7.95,212.95,212.9,4.225]
[1758745444038,3.32824226,212.94,212.85,2.17284583]
[1758745444244,3.32923465,212.93,212.86,7.24]
[1758745444436,3.32942612,212.92,212.86,7.24]
[1758745444639,2.17284583,212.94,212.88,7.24]
[1758745444837,10.12284583,212.96,212.88,7.24]
[1758745445039,3.32911308,212.95,212.88,7.24]
[1758745445243,10.12284583,212.96,212.88,7.24]
[1758745445244,3.32911308,212.94,212.88,7.24]
[1758745445444,3.32911308,212.93,212.88,7.24]
[1758745445645,10.12284583,212.96,212.88,7.24]
[1758745445843,3.32983107,212.95,212.88,7.24]
[1758745446043,7.95,212.96,212.88,7.24]
[1758745446247,3.33025425,212.95,212.88,7.24]
[1758745446447,3.33029734,212.94,212.88,7.24]
[1758745446746,7.95,212.96,212.88,7.24]
[1758745446948,3.3304009,212.95,212.88,7.24]
[1758745447249,3.3304009,212.94,212.92,7.24]
[1758745447550,3.3304009,212.93,212.92,7.24]
[1758745448049,3.33120627,212.95,212.92,7.24]
[1758745448254,3.33120627,212.94,212.92,7.24]
[1758745448454,3.33120627,212.93,212.92,7.24]
[1758745448941,3.33120627,212.94,212.92,7.24]
[1758745449147,3.33120627,212.93,212.92,7.24]
[1758745449544,3.33120627,212.94,212.92,7.24]
[1758745449742,3.33120627,212.93,212.92,7.24]
[1758745449936,7.95,212.95,212.92,7.24]
[1758745449937,3.33120627,212.94,212.92,7.24]
[1758745450645,7.95,212.93,212.84,179.8229]
[1758745450845,3.33273519,212.92,212.86,2.17284583]
[1758745451059,7.95,212.93,212.87,7.24]
[1758745451346,3.33191745,212.92,212.87,7.24]
[1758745451550,7.95,212.93,212.87,7.24]
[1758745451751,3.33191692,212.92,212.87,11.4657]
[1758745451949,11.28191692,212.91,212.87,4.2257]
[1758745452148,7.95,212.91,212.89,7.24]
[1758745452343,5.23168997,212.99,212.87,4.2257]
[1758745452344,2.17284583,212.93,212.87,7.24]
[1758745452652,10.12284583,212.91,212.84,11.4662]
[1758745452842,3.33121646,212.9,212.84,11.4662]
[1758745455255,3.33121646,212.9,212.86,2.17284583]
[1758745455560,7.95,212.94,212.87,7.24]
[1758745455762,3.32744625,212.93,212.87,7.24]
[1758745455951,7.95,212.94,212.87,7.24]
[1758745456252,3.32744572,212.93,212.91,7.24]
[1758745456459,7.95,212.94,212.91,7.24]
[1758745459556,12.1734,212.99,212.93,11.4646]
[1758745459857,3.32667095,212.98,212.95,7.24]
[1758745460156,7.95,213.02,212.95,7.24]
[1758745460354,3.32634335,213.01,212.95,7.24]
[1758745460554,3.32634335,213.0,212.94,2.17284583]
[1758745460750,3.32634335,212.99,212.96,4.2239]
[1758745460950,3.32634335,212.98,212.97,7.24]
[1758745461858,2.17284583,213.03,212.97,7.24]
[1758745462156,3.32631436,213.02,212.97,7.24]
[1758745462456,2.17284583,213.03,212.97,7.24]
[1758745462457,7.95,213.0,212.97,7.24]
[1758745462657,3.32631436,212.99,212.97,7.24]
[1758745465761,3.32631436,212.99,212.97,7.72]
[1758745466465,13.93544583,213.03,212.97,7.72]
[1758745466660,3.32706745,213.02,212.97,7.72]
[1758745466859,7.54,213.0,212.97,7.72]
[1758745467059,3.32706745,212.99,212.97,7.72]
[1758745467258,7.54,213.0,212.97,7.72]
[1758745467456,3.32718996,212.99,212.97,7.72]
[1758745467658,7.54,213.0,212.97,7.72]
[1758745467960,3.32701542,212.99,212.97,7.72]
[1758745468165,7.54,213.0,212.97,7.72]
[1758745468364,3.32711169,212.99,212.97,7.72]
[1758745468662,7.54,213.0,212.97,7.72]
[1758745468856,3.32711062,212.99,212.97,7.72]
[1758745469063,7.54,213.0,212.97,7.72]
[1758745469261,3.32720802,212.99,212.97,7.72]
[1758745469463,7.54,213.0,212.97,7.72]
[1758745469664,3.32720802,212.99,212.97,7.72]
[1758745469960,7.54,213.02,212.96,4.2239]
[1758745470265,13.0402284,213.01,212.97,4.2237]
[1758745470468,3.32738257,213.0,212.98,7.72]
[1758745470865,10.86738257,213.0,212.98,7.72]
[1758745471067,3.32738257,212.99,212.98,7.72]
[1758745474364,10.86738257,212.99,212.95,4.2241]
[1758745474563,3.32738257,212.98,212.95,4.2241]
[1758745474864,3.32738257,212.98,212.97,7.72]
[1758745475057,3.32738257,213.0,212.97,7.72]
[1758745475658,3.32738257,213.0,212.97,11.9437]
[1758745475861,3.32738257,213.0,212.98,7.72]
[1758745476767,10.86738257,213.0,212.98,7.72]
[1758745476969,3.32738257,212.99,212.98,7.72]
[1758745485974,3.32738257,212.99,212.97,11.9437]
[1758745486279,3.32738257,212.98,212.97,11.9437]
[1758745486974,3.32738257,212.99,212.97,11.9437]
[1758745487176,3.32738257,212.98,212.97,11.9437]
[1758745487475,3.32738257,212.99,212.97,11.9437]
[1758745489576,5.5002284,212.99,212.97,11.9437]
[1758745489780,3.32738257,212.98,212.97,11.9437]
[1758745491880,3.32738257,212.98,212.95,4.2241]
[1758745492081,3.32738257,212.98,212.83,103.17929231]
[1758745492082,13.0402284,212.97,212.87,7.72]
[1758745492380,13.0402284,212.97,212.88,7.72]
[1758745492381,2.17284583,212.95,212.88,7.72]
[1758745492576,3.32738257,212.94,212.88,7.72]
[1758745493178,3.32738257,212.94,212.91,4.2248]
[1758745493374,3.32738257,212.94,212.92,7.72]
[1758745493576,3.32738257,212.94,212.91,4.2248]
[1758745494076,3.32738257,212.94,212.92,7.73]
[1758745494483,3.32738257,212.94,212.91,4.2248]
[1758745494680,3.32738257,212.94,212.92,7.73]
[1758745494881,3.32738257,212.94,212.91,4.2248]
[1758745495085,3.32738257,212.94,212.92,7.73]
[1758745495284,3.32738257,212.94,212.91,4.2248]
[1758745495586,3.32738257,212.94,212.92,7.73]
[1758745495788,3.32738257,212.94,212.91,4.2248]
[1758745496188,3.32738257,212.94,212.92,7.73]
[1758745496388,3.32738257,212.94,212.91,4.2248]
[1758745496783,3.32738257,212.94,212.92,7.73]
[1758745496989,3.32738257,212.94,212.91,4.2248]
[1758745497289,2.17284583,212.98,212.93,7.73]
[1758745497492,3.33103533,212.97,212.9,7.73]
[1758745497690,3.33103533,212.96,212.92,7.73]
[1758745497890,9.94284583,213.0,212.96,11.9539]
[1758745498091,3.33128932,212.99,212.97,7.73]
[1758745498291,3.33128932,212.98,212.97,7.73]
[1758745498794,3.33128932,212.98,212.97,4.2237]
[1758745499085,3.33128932,213.0,212.92,2.17284583]
[1758745499290,3.33128932,212.99,212.92,2.17284583]
[1758745499491,3.33128932,212.98,212.93,7.73]
[1758745499687,2.17284583,213.01,212.93,7.73]
[1758745499894,3.33338548,213.0,212.93,7.73]
[1758745500093,3.33338548,212.99,212.98,7.73]
[1758745507694,7.89,212.98,212.95,4.2241]
[1758745507997,7.89,212.96,212.93,7.61]
[1758745508185,3.33338548,212.95,212.89,7.61]
[1758745508387,7.89,213.0,212.91,7.61]
[1758745508591,3.3368601,212.99,212.91,7.61]
[1758745508894,7.89,213.0,212.91,7.61]
[1758745508895,3.3368601,212.98,212.91,7.61]
[1758745509088,3.3368601,212.97,212.91,7.61]
[1758745509290,7.89,213.0,212.91,7.61]
[1758745509588,3.3366661,212.99,212.91,7.61]
[1758745509790,3.3366661,212.98,212.91,7.61]
[1758745509991,3.3366661,212.97,212.91,7.61]
[1758745510194,3.3366661,212.96,212.89,121.65]
[1758745510388,3.3366661,212.95,212.89,114.04]
[1758745510595,3.3366661,212.94,212.9,7.61]
[1758745510802,7.89,212.97,212.9,7.61]
[1758745511098,3.33594826,212.96,212.9,7.61]
[1758745511300,3.33594826,212.95,212.93,7.61]
[1758745511496,3.33594826,212.94,212.93,7.61]
[1758745512497,11.22594826,212.94,212.9,11.8351]
[1758745512701,3.33594826,212.93,212.91,7.61]
[1758745513000,7.89,212.94,212.91,7.61]
[1758745513001,3.33554535,212.92,212.91,7.61]
[1758745514300,3.33554535,212.92,212.91,11.8349]
[1758745516302,7.89,212.94,212.92,7.61]
[1758745516503,3.33295775,212.93,212.92,7.61]
[1758745519007,7.89,213.01,212.92,7.61]
[1758745519207,3.33231714,213.0,212.92,7.61]
[1758745519407,7.89,213.01,212.92,7.61]
[1758745519408,3.33231714,212.99,212.92,7.61]
[1758745519598,7.89,213.01,212.96,4.224]
[1758745519599,3.33231714,212.98,212.96,4.224]
[1758745519803,3.33266531,212.97,212.92,7.61]
[1758745520003,7.89,213.01,212.92,7.61]
[1758745520204,3.33266573,213.0,212.92,7.61]
[1758745520405,3.33266573,212.99,212.92,7.61]
[1758745520708,3.33266573,212.98,212.92,7.61]
[1758745520907,7.89,213.01,212.92,7.61]
[1758745520908,3.33266573,212.97,212.92,7.61]
[1758745521101,7.89,213.01,212.92,7.61]
[1758745521303,3.33262565,213.0,212.92,7.61]
[1758745521502,3.33262565,212.99,212.98,7.61]
[1758745522611,3.33262565,212.99,212.97,4.2236]
[1758745522910,3.33262565,212.98,212.97,11.8336]
[1758745528615,3.33225535,212.98,212.97,11.8336]
[1758745530314,3.33225535,212.98,212.96,7.63]
[1758745530515,3.33225535,212.97,212.96,7.63]
[1758745533721,11.14225535,212.97,212.95,4.2241]
[1758745534020,3.33225535,212.96,212.95,4.2241]
[1758745534724,3.33225535,212.96,212.95,11.8541]
[1758745540936,7.81,212.95,212.93,4.2245]
[1758745541237,3.33261113,212.94,212.93,11.8545]
[1758745544542,3.33261113,212.94,212.93,7.63]
[1758745548345,3.33261113,212.94,212.92,4.2246]
[1758745548544,7.81,212.96,212.93,7.63]
[1758745548837,3.33006814,212.95,212.93,7.63]
[1758745549042,3.33006814,212.94,212.93,7.63]
[1758745549339,3.33006814,212.95,212.92,4.2246]
[1758745549644,7.81,212.99,212.93,7.63]
[1758745549645,3.33006814,212.94,212.93,7.63]
[1758745550335,3.33006814,212.96,212.93,7.63]
[1758745550648,3.33006814,212.95,212.94,11.8543]
[1758745550841,3.33006814,212.95,212.9,7.63]
[1758745551144,7.81,213.0,212.9,7.63]
[1758745551346,3.33079348,212.99,212.9,7.63]
[1758745551648,3.33079348,212.98,212.9,7.63]
[1758745551944,3.33079348,212.97,212.9,7.63]
[1758745552143,3.33079348,212.96,212.9,7.63]
[1758745552346,3.33079348,212.95,212.94,11.8543]
[1758745552542,3.33079348,212.99,212.94,11.8543]
[1758745552739,3.33079348,212.98,212.94,4.2243]
[1758745552940,3.33079348,212.97,212.95,7.63]
[1758745553142,3.33079348,212.96,212.95,7.63]
[1758745553340,3.33079348,212.99,212.95,7.63]
[1758745553543,3.33079348,212.98,212.95,7.63]
[1758745553743,3.33079348,212.97,212.94,4.2243]
[1758745554048,3.33079348,212.96,212.95,7.28]
[1758745554249,3.33079348,212.98,212.94,4.2243]
[1758745554444,3.33079348,212.97,212.95,7.28]
[1758745554748,3.33079348,212.96,212.95,7.28]
[1758745554945,3.33079348,212.96,212.94,4.2243]
[1758745555248,7.67,213.0,212.94,11.5043]
[1758745555450,7.67,212.98,212.94,4.2243]